fUST/lending_fUST_20250803
["ID","MTS","AMOUNT","RATE_DAILY","PERIOD"]
[376982808,1754188242267,-501.74,0.00027945,10]
[376982810,1754188242277,-460.0,0.00027945,10]
[376982812,1754188242286,-501.74,0.00027945,10]
[376982814,1754188242296,-512.84,0.00027945,10]
[376982816,1754188242305,-501.74,0.00027945,10]
[376982818,1754188242315,-512.84,0.00027945,10]
[376982820,1754188242324,-501.74,0.00027945,10]
[376982822,1754188242334,-501.74,0.00027945,10]
[376982824,1754188242343,-501.74,0.00027945,10]
[376982826,1754188242354,-501.74,0.00027945,10]
[376982828,1754188242363,-501.74,0.00027945,10]
[376982830,1754188242372,-501.74,0.00027945,10]
[376982832,1754188242382,-501.74,0.00027945,10]
[376982834,1754188242391,-501.74,0.00027945,10]
[376982836,1754188242401,-501.74,0.00027945,10]
[376982839,1754188242410,-460.0,0.00027945,10]
[376982842,1754188242419,-501.74,0.00027945,10]
[376982845,1754188242428,-501.74,0.00027945,10]
[376982848,1754188242438,-501.74,0.00027945,10]
[376982851,1754188242447,-501.74,0.00027945,10]
[376982854,1754188242456,-501.74,0.00027945,10]
[376982856,1754188242466,-501.74,0.00027945,10]
[376982858,1754188242475,-501.74,0.00027945,10]
[376982860,1754188242484,-501.74,0.00027945,10]
[376982862,1754188242493,-460.0,0.00027945,10]
[376982864,1754188242503,-501.74,0.00027945,10]
[376982866,1754188242512,-501.92,0.00027945,10]
[376982869,1754188242522,-460.0,0.00027945,10]
[376982872,1754188242531,-460.0,0.00027945,10]
[376982875,1754188242540,-460.67024009,0.00027945,10]
[376982877,1754188242549,-914.31,0.00027945,10]
[376982880,1754188242559,-460.0,0.00027945,10]
[376982883,1754188242568,-159.34005641,0.00027945,10]
[376982886,1754188242578,-622.57,0.00027945,10]
[376982890,1754188242587,-622.57,0.00027945,10]
[376982892,1754188242597,-411.6320552,0.00027945,10]
[376982894,1754188242607,-460.0,0.00027945,10]
[376982896,1754188242616,-460.0,0.00027945,10]
[376982898,1754188242625,-151.0,0.00027945,7]
[376982900,1754188242635,-460.0,0.00027945,10]
[376982902,1754188242644,-151.0,0.00027945,7]
[376982904,1754188242654,-151.0,0.00027945,7]
[376982905,1754188242663,-467.01546234,0.00027945,10]
[376982908,1754188242673,-460.0,0.00027945,10]
[376982911,1754188242682,-460.0,0.00027945,10]
[376982914,1754188242693,-460.0,0.00027945,10]
[376982917,1754188242703,-460.0,0.00027945,10]
[376982920,1754188242713,-460.0,0.00027945,10]
[376982923,1754188242722,-2473.48,0.00027945,10]
[376982926,1754188242732,-2473.48,0.00027945,10]
[376982929,1754188242742,-2473.48,0.00027945,10]
[376982931,1754188242752,-2473.48,0.00027945,10]
[376982933,1754188242762,-2473.48,0.00027945,10]
[376982935,1754188242772,-2473.48,0.00027945,10]
[376982937,1754188242781,-2473.48,0.00027945,10]
[376982939,1754188242792,-2473.48,0.00027945,10]
[376982941,1754188242801,-2473.48,0.00027945,10]
[376982943,1754188242811,-2473.48,0.00027945,10]
[376982945,1754188242821,-2473.48,0.00027945,10]
[376982947,1754188242830,-460.0,0.00027945,10]
[376982949,1754188242840,-2473.48,0.00027945,10]
[376982951,1754188242850,-461.5281052,0.00027945,10]
[376982953,1754188242859,-2473.48,0.00027945,10]
[376982955,1754188242869,-2473.48,0.00027945,10]
[376982957,1754188242879,-2473.48,0.00027945,10]
[376982958,1754188242889,-2473.48,0.00027945,10]
[376982960,1754188242898,-2473.48,0.00027945,10]
[376982962,1754188242910,-2473.48,0.00027945,10]
[376982964,1754188242920,-2473.48,0.00027945,10]
[376982966,1754188242930,-489.28,0.00027945,10]
[376982968,1754188242940,-2473.48,0.00027945,10]
[376982970,1754188242950,-489.28,0.00027945,10]
[376982972,1754188242959,-2473.48,0.00027945,10]
[376982974,1754188242968,-2473.48,0.00027945,10]
[376982976,1754188242978,-2473.48,0.00027945,10]
[376982978,1754188242988,-2473.5885406,0.00027945,10]
[376982979,1754188242999,-460.0,0.00027945,10]
[376982981,1754188243009,-638.65,0.00027945,10]
[376982983,1754188243019,-462.9946965,0.00027945,10]
[376982985,1754188243028,-460.0,0.00027945,10]
[376982987,1754188243037,-460.0,0.00027945,10]
[376982989,1754188243047,-461.87391745,0.00027945,10]
[376982991,1754188243056,-460.0,0.00027945,10]
[376982993,1754188243066,-460.0,0.00027945,10]
[376982995,1754188243076,-460.0,0.00027945,10]
[376982997,1754188243085,-461.35863961,0.00027945,10]
[376982999,1754188243094,-521.44,0.00027945,10]
[376983001,1754188243103,-460.0,0.00027945,10]
[376983014,1754188243215,-784.1,0.00027945,10]
[376983018,1754188243225,-460.0,0.00027945,10]
[376983022,1754188243234,-460.0,0.00027945,10]
[376983024,1754188243244,-784.1,0.00027945,10]
[376983027,1754188243253,-460.0,0.00027945,10]
[376983029,1754188243262,-460.0,0.00027945,10]
[376983032,1754188243271,-460.0,0.00027945,10]
[376983035,1754188243280,-460.0,0.00027945,10]
[376983038,1754188243290,-400.88323396,0.00027945,10]
[376983040,1754188243299,-460.0,0.00027945,10]
[376983042,1754188243308,-462.10585306,0.00027945,10]
[376983044,1754188243318,-461.03441972,0.00027945,10]
[376983046,1754188243327,-838.02,0.00027945,10]
[376983048,1754188243336,-838.02,0.00027945,10]
[376983050,1754188243345,-867.59,0.00027945,10]
[376983052,1754188243355,-867.59,0.00027945,10]
[376983054,1754188243364,-460.0,0.00027945,10]
[376983056,1754188243373,-460.0,0.00027945,10]
[376983058,1754188243383,-460.0,0.00027945,10]
[376983060,1754188243392,-460.0,0.00027945,10]
[376983062,1754188243402,-318.88911358,0.00027945,10]
[376983064,1754188243411,-461.8544993,0.00027945,10]
[376983066,1754188243420,-460.0,0.00027945,10]
[376983068,1754188243430,-460.0,0.00027945,10]
[376983070,1754188243439,-460.0,0.00027945,10]
[376983072,1754188243448,-460.0,0.00027945,10]
[376983074,1754188243457,-460.0,0.00027945,10]
[376983076,1754188243466,-460.0,0.00027945,10]
[376983078,1754188243476,-460.0,0.00027945,10]
[376983080,1754188243485,-460.0,0.00027945,10]
[376983082,1754188243495,-460.0,0.00027945,10]
[376983084,1754188243504,-460.0,0.00027945,10]
[376983085,1754188243513,-702.39,0.00027945,10]
[376983087,1754188243522,-702.39,0.00027945,10]
[376983089,1754188243532,-839.45,0.00027945,10]
[376983091,1754188243541,-839.45,0.00027945,10]
[376983093,1754188243550,-460.0,0.00027945,10]
[376983095,1754188243560,-460.0,0.00027945,10]
[376983097,1754188243569,-460.0,0.00027945,10]
[376983099,1754188243578,-460.0,0.00027945,10]
[376983101,1754188243588,-460.0,0.00027945,10]
[376983103,1754188243597,-460.0,0.00027945,10]
[376983105,1754188243607,-460.0,0.00027945,10]
[376983107,1754188243616,-460.0,0.00027945,10]
[376983109,1754188243625,-463.03142756,0.00027945,10]
[376983111,1754188243635,-460.0,0.00027945,10]
[376983113,1754188243644,-460.0,0.00027945,10]
[376983115,1754188243653,-460.0,0.00027945,10]
[376983117,1754188243662,-460.0,0.00027945,10]
[376983119,1754188243671,-461.15897465,0.00027945,10]
[376983121,1754188243681,-460.0,0.00027945,10]
[376983123,1754188243690,-500.0,0.00027945,2]
[376983125,1754188243701,-500.0,0.00027945,2]
[376983127,1754188243711,-500.0,0.00027945,2]
[376983129,1754188243720,-500.0,0.00027945,2]
[376983131,1754188243729,-500.0,0.00027945,2]
[376983133,1754188243739,-500.0,0.00027945,2]
[376983135,1754188243748,-502.83765106,0.00027945,2]
[376983137,1754188243758,-460.0,0.00027945,10]
[376983138,1754188243767,-460.0,0.00027945,10]
[376983140,1754188243777,-460.0,0.00027945,10]
[376983142,1754188243786,-460.0,0.00027945,10]
[376983144,1754188243795,-329.04539247,0.00027945,10]
[376983146,1754188243805,-460.0,0.00027945,10]
[376983148,1754188243815,-460.0,0.00027945,10]
[376983150,1754188243824,-460.0,0.00027945,10]
[376983152,1754188243834,-280.04024079,0.00027945,10]
[376983154,1754188243844,-460.0,0.00027945,10]
[376983156,1754188243854,-460.0,0.00027945,10]
[376983158,1754188243865,-460.0,0.00027945,10]
[376983160,1754188243875,-460.0,0.00027945,10]
[376983162,1754188243884,-460.0,0.00027945,10]
[376983164,1754188243894,-460.0,0.00027945,10]
[376983166,1754188243904,-1716.01,0.00027945,10]
[376983168,1754188243916,-233.03502993,0.00027945,10]
[376983170,1754188243926,-538.19,0.00027945,10]
[376983172,1754188243935,-460.0,0.00027945,10]
[376983174,1754188243945,-460.0,0.00027945,10]
[376983176,1754188243956,-460.0,0.00027945,10]
[376983178,1754188243966,-460.0,0.00027945,10]
[376983179,1754188243976,-465.22541903,0.00027945,10]
[376983181,1754188243988,-460.0,0.00027945,10]
[376983183,1754188243998,-460.0,0.00027945,10]
[376983185,1754188244008,-460.0,0.00027945,10]
[376983187,1754188244017,-473.83681554,0.00027945,10]
[376983189,1754188244027,-461.21542735,0.00027945,10]
[376983191,1754188244037,-460.0,0.00027945,10]
[376983193,1754188244047,-460.0,0.00027945,10]
[376983195,1754188244057,-464.99500305,0.00027945,10]
[376983197,1754188244066,-681.14,0.00027945,10]
[376983199,1754188244075,-460.52649822,0.00027945,10]
[376983201,1754188244085,-460.0,0.00027945,10]
[376983203,1754188244094,-681.14,0.00027945,10]
[376983205,1754188244104,-40638.5700697,0.00027949,2]
[376983207,1754188244114,-204.90664413,0.00027949,2]
[376983209,1754188244123,-5499.6671681,0.00027959,2]
[376983211,1754188244132,-151.0,0.00027962,7]
[376983213,1754188244142,-151.0,0.00027962,7]
[376983215,1754188244151,-151.0,0.00027962,7]
[376983217,1754188244160,-151.0,0.00027962,7]
[376983219,1754188244169,-151.0,0.00027962,7]
[376983221,1754188244180,-151.0,0.00027962,7]
[376983223,1754188244190,-151.0,0.00027969,7]
[376983225,1754188244199,-151.0,0.00027969,7]
[376983226,1754188244208,-501.83017169,0.00027973,5]
[376983228,1754188244218,-210.54346375,0.00027973,5]
[376983231,1754188244229,-504.8454297,0.00027973,5]
[376983233,1754188244239,-500.0,0.00027973,5]
[376983235,1754188244249,-500.0,0.00027973,5]
[376983237,1754188244259,-500.0,0.00027973,5]
[376983239,1754188244268,-502.84410732,0.00027973,5]
[376983241,1754188244278,-501.30693855,0.00027973,5]
[376983242,1754188244288,-506.72401428,0.00027973,5]
[376983244,1754188244297,-500.0,0.00027973,5]
[376983246,1754188244306,-500.0,0.00027973,5]
[376983248,1754188244315,-500.0,0.00027973,5]
[376983250,1754188244328,-500.0,0.00027973,5]
[376983252,1754188244339,-500.0,0.00027973,5]
[376983254,1754188244349,-502.31271072,0.00027973,5]
[376983256,1754188244358,-200.0,0.00027973,5]
[376983258,1754188244367,-500.0,0.00027973,5]
[376983260,1754188244376,-500.0,0.00027973,5]
[376983262,1754188244385,-500.0,0.00027973,5]
[376983264,1754188244395,-500.0,0.00027973,5]
[376983266,1754188244404,-506.21121099,0.00027973,5]
[376983268,1754188244414,-505.75685773,0.00027973,5]
[376983270,1754188244423,-436.46617862,0.00027973,3]
[376983272,1754188244432,-500.0,0.00027973,5]
[376983273,1754188244442,-500.0,0.00027973,5]
[376983275,1754188244451,-500.0,0.00027973,2]
[376983277,1754188244460,-500.0,0.00027973,5]
[376983279,1754188244471,-500.0,0.00027973,5]
[376983281,1754188244480,-501.83942613,0.00027973,5]
[376983283,1754188244489,-500.0,0.00027973,5]
[376983285,1754188244498,-500.0,0.00027973,5]
[376983287,1754188244508,-614.71993239,0.00027978,2]
[376983289,1754188244518,-152.322159,0.00027978,7]
[376983291,1754188244527,-151.0,0.00027978,7]
[376983293,1754188244538,-151.0,0.00027978,7]
[376983295,1754188244548,-151.0,0.00027978,7]
[376983297,1754188244559,-151.0,0.00027978,7]
[376983299,1754188244569,-195.810861,0.00027978,7]
[376983301,1754188244579,-151.0,0.00027979,7]
[376983303,1754188244588,-151.898692,0.00027979,7]
[376983305,1754188244598,-151.0,0.00027979,7]
[376983307,1754188244607,-153.461749,0.00027979,7]
[376983309,1754188244617,-151.0,0.00027979,7]
[376983311,1754188244626,-151.0,0.00027979,7]
[376983313,1754188244635,-151.0,0.00027979,7]
[376983315,1754188244645,-819.62657652,0.00027979,2]
[376983317,1754188244654,-2628.80103295,0.00027988,2]
[376983319,1754188244665,-460.0,0.00027988,10]
[376983321,1754188244675,-474.77296394,0.00027988,10]
[376983323,1754188244684,-463.77947025,0.00027988,10]
[376983325,1754188244695,-460.58590432,0.00027988,10]
[376983327,1754188244704,-461.41030493,0.00027988,10]
[376983328,1754188244714,-271.93691518,0.00027988,10]
[376983329,1754188244724,-464.887508,0.00027988,10]
[376983330,1754188244733,-460.0,0.00027988,10]
[376983331,1754188244743,-460.0,0.00027988,10]
[376983332,1754188244752,-460.0,0.00027988,7]
[376983333,1754188244763,-460.0,0.00027988,7]
[376983334,1754188244772,-275.74026919,0.00027988,10]
[376983335,1754188244782,-463.72012954,0.00027988,10]
[376983336,1754188244791,-460.0,0.00027988,3]
[376983337,1754188244801,-460.0,0.00027988,3]
[376983338,1754188244811,-460.0,0.00027988,10]
[376983339,1754188244820,-460.0,0.00027988,10]
[376983340,1754188244830,-479.15250816,0.00027988,10]
[376983350,1754188244930,-464.64360982,0.00027988,10]
[376983352,1754188244940,-461.85352968,0.00027988,10]
[376983354,1754188244951,-265.71620626,0.00027988,10]
[376983356,1754188244960,-460.92214198,0.00027988,10]
[376983358,1754188244970,-460.0,0.00027988,10]
[376983360,1754188244979,-460.0,0.00027988,10]
[376983362,1754188244992,-461.11785279,0.00027988,10]
[376983364,1754188245002,-479.16,0.00027988,10]
[376983366,1754188245012,-479.16,0.00027988,10]
[376983368,1754188245021,-479.16,0.00027988,10]
[376983370,1754188245032,-460.0,0.00027988,10]
[376983372,1754188245041,-460.0,0.00027988,10]
[376983374,1754188245051,-460.0,0.00027988,10]
[376983376,1754188245060,-460.0,0.00027988,10]
[376983378,1754188245070,-460.0,0.00027988,10]
[376983380,1754188245080,-448.98755953,0.00027988,10]
[376983382,1754188245090,-460.0,0.00027988,10]
[376983384,1754188245100,-460.0,0.00027988,10]
[376983386,1754188245109,-460.0,0.00027988,10]
[376983388,1754188245118,-460.0,0.00027988,10]
[376983390,1754188245128,-499.939427,0.00027988,10]
[376983392,1754188245138,-460.0,0.00027988,10]
[376983394,1754188245147,-468.05100991,0.00027988,10]
[376983396,1754188245156,-463.14630264,0.00027988,10]
[376983398,1754188245166,-460.0,0.00027988,10]
[376983400,1754188245175,-460.0,0.00027988,10]
[376983402,1754188245184,-460.0,0.00027988,10]
[376983404,1754188245194,-461.27029674,0.00027988,10]
[376983406,1754188245204,-460.0,0.00027988,10]
[376983408,1754188245213,-385.17304618,0.00027988,10]
[376983410,1754188245223,-460.0,0.00027988,10]
[376983412,1754188245233,-460.0,0.00027988,10]
[376983414,1754188245243,-460.0,0.00027988,10]
[376983416,1754188245252,-463.3158521,0.00027988,10]
[376983418,1754188245262,-470.70838533,0.00027988,10]
[376983420,1754188245271,-460.0,0.00027988,10]
[376983422,1754188245281,-457.12718892,0.00027988,10]
[376983424,1754188245290,-460.0,0.00027988,10]
[376983426,1754188245299,-511.98908845,0.00027988,10]
[376983428,1754188245308,-6353.71,0.00027988,10]
[376983430,1754188245318,-6353.71,0.00027988,10]
[376983431,1754188245328,-460.0,0.00027988,10]
[376983434,1754188245338,-463.27021189,0.00027988,10]
[376983436,1754188245348,-460.0,0.00027988,10]
[376983437,1754188245357,-461.8218934,0.00027988,10]
[376983439,1754188245367,-460.0,0.00027988,10]
[376983441,1754188245377,-460.0,0.00027988,10]
[376983443,1754188245386,-460.0,0.00027988,10]
[376983445,1754188245395,-460.0,0.00027988,10]
[376983447,1754188245405,-460.0,0.00027988,10]
[376983449,1754188245414,-464.6841075,0.00027988,10]
[376983452,1754188245424,-460.0,0.00027988,10]
[376983455,1754188245433,-460.0,0.00027988,10]
[376983457,1754188245442,-460.0,0.00027988,10]
[376983459,1754188245452,-461.58503619,0.00027988,5]
[376983461,1754188245461,-460.0,0.00027988,10]
[376983463,1754188245470,-460.0,0.00027988,10]
[376983466,1754188245479,-500.0,0.00027988,10]
[376983469,1754188245489,-500.0,0.00027988,10]
[376983471,1754188245498,-500.0,0.00027988,10]
[376983473,1754188245508,-317.13544875,0.00027988,10]
[376983475,1754188245517,-463.15466199,0.00027988,10]
[376983477,1754188245526,-460.0,0.00027988,10]
[376983479,1754188245535,-460.0,0.00027988,10]
[376983481,1754188245545,-462.10268832,0.00027988,10]
[376983483,1754188245555,-470.27087751,0.00027988,10]
[376983485,1754188245564,-592.63272327,0.00027988,10]
[376983487,1754188245573,-460.0,0.00027988,10]
[376983489,1754188245583,-460.0,0.00027988,10]
[376983491,1754188245592,-460.0,0.00027988,10]
[376983493,1754188245601,-460.0,0.00027988,10]
[376983495,1754188245611,-463.63010108,0.00027988,10]
[376983497,1754188245621,-151.0,0.00027988,7]
[376983498,1754188245631,-469.65142029,0.00027988,10]
[376983500,1754188245641,-461.75340939,0.00027988,10]
[376983502,1754188245651,-151.0,0.00027988,7]
[376983504,1754188245660,-229.119598,0.00027988,7]
[376983506,1754188245670,-476.63,0.00027988,10]
[376983508,1754188245680,-476.63,0.00027988,10]
[376983510,1754188245690,-204.35107869,0.00027988,10]
[376983512,1754188245700,-151.0,0.00027988,7]
[376983514,1754188245710,-151.0,0.00027988,7]
[376983516,1754188245720,-151.0,0.00027988,7]
[376983518,1754188245729,-151.0,0.00027988,7]
[376983520,1754188245739,-151.0,0.00027988,7]
[376983522,1754188245748,-153.574668,0.00027988,7]
[376983524,1754188245758,-464.79503575,0.00027988,10]
[376983526,1754188245767,-466.31965761,0.00027988,10]
[376983528,1754188245777,-460.0,0.00027988,10]
[376983530,1754188245787,-460.0,0.00027988,10]
[376983532,1754188245796,-460.0,0.00027988,10]
[376983534,1754188245806,-465.01527314,0.00027988,10]
[376983536,1754188245815,-498.33,0.00027988,10]
[376983538,1754188245827,-498.33,0.00027988,10]
[376983540,1754188245842,-460.0,0.00027988,10]
[376983542,1754188245852,-463.81672912,0.00027988,10]
[376983544,1754188245862,-460.0,0.00027988,10]
[376983546,1754188245872,-460.0,0.00027988,10]
[376983548,1754188245881,-460.0,0.00027988,10]
[376983550,1754188245891,-460.0,0.00027988,10]
[376983552,1754188245900,-462.42,0.00027988,10]
[376983554,1754188245912,-462.42,0.00027988,10]
[376983556,1754188245922,-2431.89,0.00027988,10]
[376983558,1754188245931,-2431.89,0.00027988,10]
[376983560,1754188245940,-2431.89,0.00027988,10]
[376983562,1754188245951,-460.0,0.00027988,10]
[376983564,1754188245961,-460.0,0.00027988,10]
[376983566,1754188245970,-617.77,0.00027988,10]
[376983568,1754188245979,-617.77,0.00027988,10]
[376983570,1754188245991,-617.77,0.00027988,10]
[376983572,1754188246000,-460.0,0.00027988,10]
[376983573,1754188246009,-472.50961624,0.00027988,10]
[376983575,1754188246018,-462.09091175,0.00027988,10]
[376983578,1754188246027,-461.49785638,0.00027988,10]
[376983580,1754188246037,-554.62,0.00027988,10]
[376983582,1754188246047,-554.62,0.00027988,10]
[376983584,1754188246056,-554.62,0.00027988,10]
[376983586,1754188246066,-2315.16,0.00027988,10]
[376983588,1754188246075,-2315.16,0.00027988,10]
[376983590,1754188246085,-460.0,0.00027988,10]
[376983591,1754188246094,-460.0,0.00027988,10]
[376983593,1754188246104,-460.0,0.00027988,10]
[376983595,1754188246113,-460.0,0.00027988,10]
[376983597,1754188246122,-460.0,0.00027988,10]
[376983599,1754188246131,-460.0,0.00027988,10]
[376983601,1754188246141,-460.0,0.00027988,10]
[376983603,1754188246152,-460.0,0.00027988,10]
[376983605,1754188246161,-460.0,0.00027988,10]
[376983607,1754188246171,-283.99093187,0.00027988,10]
[376983609,1754188246181,-485.74,0.00027988,10]
[376983611,1754188246190,-485.74,0.00027988,10]
[376983613,1754188246200,-460.0,0.00027988,10]
[376983615,1754188246209,-485.74,0.00027988,10]
[376983617,1754188246219,-460.0,0.00027988,10]
[376983619,1754188246228,-310.88735985,0.00027988,10]
[376983621,1754188246237,-325.14574247,0.00027988,10]
[376983623,1754188246247,-460.0,0.00027988,10]
[376983625,1754188246256,-460.0,0.00027988,10]
[376983627,1754188246265,-881.18,0.00027988,10]
[376983629,1754188246274,-881.18,0.00027988,10]
[376983631,1754188246284,-881.18,0.00027988,10]
[376983633,1754188246294,-460.0,0.00027988,10]
[376983635,1754188246303,-460.0,0.00027988,10]
[376983637,1754188246313,-933.66,0.00027988,10]
[376983639,1754188246323,-460.0,0.00027988,10]
[376983641,1754188246332,-933.66,0.00027988,10]
[376983643,1754188246342,-2971.93,0.00027988,10]
[376983645,1754188246352,-2971.93,0.00027988,10]
[376983647,1754188246361,-2971.93,0.00027988,10]
[376983649,1754188246370,-460.0,0.00027988,10]
[376983651,1754188246380,-460.0,0.00027988,10]
[376983653,1754188246389,-460.0,0.00027988,10]
[376983655,1754188246398,-460.0,0.00027988,10]
[376983657,1754188246407,-460.0,0.00027988,10]
[376983659,1754188246417,-460.0,0.00027988,10]
[376983671,1754188246527,-460.0,0.00027988,10]
[376983673,1754188246542,-460.0,0.00027988,10]
[376983675,1754188246551,-460.0,0.00027988,10]
[376983677,1754188246560,-460.0,0.00027988,10]
[376983679,1754188246570,-460.0,0.00027988,10]
[376983681,1754188246579,-264.75515117,0.00027988,10]
[376983683,1754188246588,-460.0,0.00027988,10]
[376983685,1754188246597,-460.0,0.00027988,10]
[376983687,1754188246607,-460.0,0.00027988,10]
[376983689,1754188246617,-491.92,0.00027988,10]
[376983691,1754188246626,-491.92,0.00027988,10]
[376983693,1754188246635,-491.92,0.00027988,10]
[376983695,1754188246644,-500.0,0.00027988,10]
[376983697,1754188246654,-500.0,0.00027988,10]
[376983699,1754188246663,-460.0,0.00027988,10]
[376983701,1754188246672,-460.0,0.00027988,10]
[376983702,1754188246682,-460.0,0.00027988,10]
[376983704,1754188246691,-460.0,0.00027988,10]
[376983706,1754188246701,-460.0,0.00027988,10]
[376983708,1754188246710,-460.0,0.00027988,10]
[376983710,1754188246719,-460.0,0.00027988,10]
[376983712,1754188246731,-460.0,0.00027988,10]
[376983714,1754188246750,-460.0,0.00027988,10]
[376983717,1754188246760,-460.0,0.00027988,10]
[376983718,1754188246771,-475.97353878,0.00027988,10]
[376983720,1754188246780,-460.0,0.00027988,10]
[376983722,1754188246790,-490.00960307,0.00027988,10]
[376983724,1754188246799,-460.0,0.00027988,10]
[376983726,1754188246809,-594.56112637,0.00027988,10]
[376983728,1754188246818,-460.0,0.00027988,10]
[376983730,1754188246827,-460.0,0.00027988,10]
[376983732,1754188246836,-460.0,0.00027988,10]
[376983734,1754188246849,-460.0,0.00027988,10]
[376983736,1754188246859,-491.06384617,0.00027988,10]
[376983738,1754188246868,-460.0,0.00027988,10]
[376983740,1754188246879,-460.0,0.00027988,10]
[376983742,1754188246888,-460.0,0.00027988,10]
[376983744,1754188246898,-460.0,0.00027988,10]
[376983746,1754188246910,-460.0,0.00027988,10]
[376983748,1754188246920,-460.0,0.00027988,10]
[376983750,1754188246930,-460.0,0.00027988,10]
[376983752,1754188246939,-1482.14,0.00027988,10]
[376983754,1754188246950,-1482.14,0.00027988,10]
[376983756,1754188246961,-1482.14,0.00027988,10]
[376983758,1754188246970,-1482.14,0.00027988,10]
[376983760,1754188246980,-1482.14,0.00027988,10]
[376983762,1754188246993,-460.0,0.00027988,10]
[376983764,1754188247002,-460.0,0.00027988,10]
[376983766,1754188247012,-460.0,0.00027988,10]
[376983768,1754188247021,-460.0,0.00027988,10]
[376983770,1754188247031,-460.0,0.00027988,10]
[376983772,1754188247040,-460.0,0.00027988,10]
[376983774,1754188247054,-460.0,0.00027988,10]
[376983776,1754188247063,-460.0,0.00027988,10]
[376983778,1754188247073,-460.0,0.00027988,10]
[376983780,1754188247083,-460.0,0.00027988,10]
[376983782,1754188247092,-461.16600876,0.00027988,10]
[376983784,1754188247101,-460.0,0.00027988,10]
[376983786,1754188247116,-460.0,0.00027988,10]
[376983788,1754188247126,-460.0,0.00027988,10]
[376983790,1754188247135,-460.0,0.00027988,10]
[376983792,1754188247145,-460.0,0.00027988,10]
[376983794,1754188247155,-581.99,0.00027988,10]
[376983796,1754188247165,-581.99,0.00027988,10]
[376983798,1754188247175,-581.99,0.00027988,10]
[376983800,1754188247184,-460.0,0.00027988,10]
[376983802,1754188247194,-460.0,0.00027988,10]
[376983804,1754188247203,-512.84,0.00027988,10]
[376983806,1754188247212,-512.84,0.00027988,10]
[376983808,1754188247222,-512.84,0.00027988,10]
[376983809,1754188247232,-461.33317056,0.00027988,10]
[376983811,1754188247242,-463.9968597,0.00027988,10]
[376983813,1754188247256,-461.33890987,0.00027988,10]
[376983815,1754188247266,-622.57,0.00027988,10]
[376983817,1754188247275,-622.57,0.00027988,10]
[376983819,1754188247285,-622.57,0.00027988,10]
[376983821,1754188247294,-469.21244645,0.00027988,10]
[376983823,1754188247304,-460.0,0.00027988,10]
[376983825,1754188247314,-460.0,0.00027988,10]
[376983827,1754188247324,-151.0,0.00027988,7]
[376983829,1754188247334,-153.956348,0.00027988,7]
[376983831,1754188247344,-460.0,0.00027988,10]
[376983833,1754188247355,-460.0,0.00027988,10]
[376983835,1754188247364,-460.0,0.00027988,10]
[376983837,1754188247374,-460.0,0.00027988,10]
[376983840,1754188247383,-460.0,0.00027988,10]
[376983842,1754188247393,-460.0,0.00027988,10]
[376983844,1754188247402,-460.0,0.00027988,10]